fUST/lending_fUST_20250921
["ID","MTS","AMOUNT","RATE_DAILY","PERIOD"]
[386655807,1758451856991,-373.155315,0.00021643,2]
[386655808,1758451857001,-1211.94,0.00021643,2]
[386655809,1758451857010,-373.155315,0.00021643,2]
[386655810,1758451857020,-480.0,0.00021643,2]
[386655811,1758451857029,-151.0,0.00021643,2]
[386655812,1758451857039,-500.0,0.00021644,2]
[386655813,1758451857049,-179.0,0.00021648,2]
[386655814,1758451857059,-151.0,0.00021664,2]
[386655815,1758451857068,-151.0,0.00021664,2]
[386655816,1758451857078,-194.852732,0.00021664,2]
[386655817,1758451857087,-194.852732,0.00021664,2]
[386655818,1758451857097,-194.852732,0.00021664,2]
[386655819,1758451857106,-194.852732,0.00021664,2]
[386655820,1758451857116,-1500.0,0.00021664,2]
[386655821,1758451857126,-2500.0,0.00021664,2]
[386655822,1758451857136,-226.0,0.00021671,5]
[386655823,1758451857146,-160.0,0.00021706,3]
[386655824,1758451857155,-179.0,0.00021722,2]
[386655825,1758451857165,-1300.0,0.00021808,2]
[386655826,1758451857174,-606.8224536,0.00021822,2]
[386655827,1758451857184,-500.0,0.00021822,2]
[386655828,1758451857194,-1000.0,0.00021857,2]
[386655829,1758451857203,-1000.0,0.00021857,2]
[386655830,1758451857213,-1007.48407643,0.00021857,2]
[386655831,1758451857223,-225.9891792,0.00021867,2]
[386655832,1758451857232,-1000.0,0.00021917,2]
[386655833,1758451857242,-1000.0,0.00021917,2]
[386655834,1758451857251,-1000.0,0.00021917,2]
[386655835,1758451857260,-1000.0,0.00021917,2]
[386655836,1758451857270,-1000.0,0.00021917,2]
[386655837,1758451857279,-1000.0,0.00021917,2]
[386655838,1758451857289,-1000.0,0.00021917,2]
[386655839,1758451857298,-1000.0,0.00021917,2]
[386655840,1758451857308,-1000.0,0.00021917,2]
[386655841,1758451857318,-1000.0,0.00021917,2]
[386655842,1758451857327,-160.15618041,0.00021917,2]
[386655843,1758451857336,-200.0,0.00021917,2]
[386655844,1758451857347,-252.17080021,0.00021917,2]
[386655845,1758451857356,-480.0,0.00021917,2]
[386655846,1758451857367,-480.0,0.00021917,2]
[386655847,1758451857376,-538.01893556,0.00021917,2]
[386655848,1758451857386,-480.0,0.00021917,2]
[386655849,1758451857396,-480.0,0.00021917,2]
[386655850,1758451857406,-480.0,0.00021917,2]
[386655851,1758451857415,-480.0,0.00021917,2]
[386655852,1758451857424,-480.0,0.00021917,2]
[386655853,1758451857434,-480.0,0.00021917,2]
[386655854,1758451857443,-480.0,0.00021917,2]
[386655855,1758451857453,-480.0,0.00021917,2]
[386655856,1758451857463,-480.0,0.00021917,2]
[386655857,1758451857472,-480.0,0.00021917,2]
[386655858,1758451857482,-490.48910028,0.00021917,2]
[386655859,1758451857491,-480.0,0.00021917,2]
[386655860,1758451857501,-480.0,0.00021917,2]
[386655861,1758451857510,-356.20244263,0.00021917,2]
[386655862,1758451857519,-480.0,0.00021917,2]
[386655863,1758451857528,-480.0,0.00021917,2]
[386655864,1758451857538,-480.0,0.00021917,2]
[386655865,1758451857548,-500.0,0.00021917,2]
[386655866,1758451857557,-500.0,0.00021917,2]
[386655867,1758451857567,-500.0,0.00021917,2]
[386655868,1758451857576,-500.0,0.00021917,2]
[386655869,1758451857586,-507.87514399,0.00021917,2]
[386655870,1758451857595,-480.0,0.00021917,2]
[386655871,1758451857606,-480.0,0.00021917,2]
[386655872,1758451857615,-480.0,0.00021917,2]
[386655873,1758451857624,-480.0,0.00021917,2]
[386655874,1758451857633,-480.0,0.00021917,2]
[386655875,1758451857676,-480.0,0.00021917,2]
[386655876,1758451857686,-861.84,0.00021917,2]
[386655877,1758451857695,-151.0,0.00021917,2]
[386655878,1758451857704,-935.99,0.00021917,2]
[386655879,1758451857713,-153.305078,0.00021917,2]
[386655880,1758451857723,-151.0,0.00021917,2]
[386655881,1758451857733,-480.0,0.00021917,2]
[386655882,1758451857742,-151.0,0.00021917,2]
[386655883,1758451857751,-530.57,0.00021917,2]
[386655884,1758451857761,-153.08488,0.00021917,2]
[386655885,1758451857771,-480.0,0.00021917,2]
[386655886,1758451857780,-1522.15,0.00021917,2]
[386655887,1758451857789,-151.0,0.00021917,2]
[386655888,1758451857799,-480.0,0.00021917,2]
[386655889,1758451857808,-151.0,0.00021917,2]
[386655890,1758451857817,-1988.96,0.00021917,2]
[386655891,1758451857827,-151.0,0.00021917,2]
[386655892,1758451857837,-480.0,0.00021917,2]
[386655893,1758451857846,-152.134775,0.00021917,2]
[386655894,1758451857856,-151.0,0.00021917,2]
[386655895,1758451857865,-197.749859,0.00021917,2]
[386655896,1758451857875,-293.485142,0.00021917,2]
[386655897,1758451857885,-151.0,0.00021917,2]
[386655898,1758451857894,-151.0,0.00021917,2]
[386655899,1758451857904,-151.0,0.00021917,2]
[386655900,1758451857913,-151.0,0.00021917,2]
[386655901,1758451857923,-480.0,0.00021917,2]
[386655902,1758451857932,-480.0,0.00021917,2]
[386655903,1758451857942,-151.0,0.00021917,2]
[386655904,1758451857951,-557.88,0.00021917,2]
[386655905,1758451857961,-1814.27,0.00021917,2]
[386655906,1758451857971,-480.0,0.00021917,2]
[386655907,1758451857980,-852.0,0.00021917,2]
[386655908,1758451857990,-877.9,0.00021917,2]
[386655909,1758451857999,-2934.94,0.00021917,2]
[386655910,1758451858009,-151.0,0.00021917,2]
[386655911,1758451858018,-480.0,0.00021917,2]
[386655912,1758451858028,-151.0,0.00021917,2]
[386655913,1758451858037,-151.0,0.00021917,2]
[386655914,1758451858048,-886.63,0.00021917,2]
[386655915,1758451858061,-151.0,0.00021917,2]
[386655916,1758451858072,-152.014473,0.00021917,2]
[386655917,1758451858082,-1154.68,0.00021917,2]
[386655918,1758451858091,-480.0,0.00021917,2]
[386655919,1758451858102,-480.0,0.00021917,2]
[386655920,1758451858112,-480.0,0.00021917,2]
[386655921,1758451858121,-480.0,0.00021917,2]
[386655922,1758451858130,-158.219242,0.00021917,2]
[386655923,1758451858140,-151.0,0.00021917,2]
[386655924,1758451858150,-153.352688,0.00021917,2]
[386655925,1758451858159,-435.29943271,0.00021917,2]
[386655926,1758451858169,-10502.96,0.00021917,2]
[386655927,1758451858178,-586.27,0.00021917,2]
[386655928,1758451858187,-768.24,0.00021917,2]
[386655929,1758451858197,-987.82,0.00021917,2]
[386655930,1758451858206,-480.0,0.00021917,2]
[386655931,1758451858215,-480.0,0.00021917,2]
[386655932,1758451858224,-392.00834112,0.00021917,2]
[386655933,1758451858234,-530.61,0.00021917,2]
[386655934,1758451858243,-480.0,0.00021917,2]
[386655935,1758451858252,-1896.42,0.00021917,2]
[386655936,1758451858262,-480.0,0.00021917,2]
[386655937,1758451858271,-480.0,0.00021917,2]
[386655938,1758451858281,-480.0,0.00021917,2]
[386655939,1758451858290,-480.0,0.00021917,2]
[386655940,1758451858299,-480.0,0.00021917,2]
[386655941,1758451858309,-970.28,0.00021917,2]
[386655942,1758451858318,-480.0,0.00021917,2]
[386655943,1758451858328,-519.16,0.00021917,2]
[386655944,1758451858338,-1102.68,0.00021917,2]
[386655945,1758451858347,-480.0,0.00021917,2]
[386655946,1758451858356,-480.0,0.00021917,2]
[386655947,1758451858366,-650.16,0.00021917,2]
[386655948,1758451858376,-864.96,0.00021917,2]
[386655949,1758451858385,-480.0,0.00021917,2]
[386655950,1758451858395,-480.0,0.00021917,2]
[386655951,1758451858404,-382.89752809,0.00021917,2]
[386655952,1758451858415,-1211.94,0.00021917,2]
[386655953,1758451858424,-480.0,0.00021917,2]
[386655954,1758451858433,-500.0,0.00021918,2]
[386655955,1758451858443,-551.07059046,0.00021921,2]
[386655956,1758451858453,-1373.49166916,0.00021924,2]
[386655957,1758451858462,-1500.0,0.00021924,2]
[386655958,1758451858472,-1109.0059365,0.00021924,2]
[386655959,1758451858482,-825.92532273,0.00021924,2]
[386655960,1758451858491,-1500.0,0.00021924,2]
[386655961,1758451858501,-1500.0,0.00021924,2]
[386655962,1758451858511,-1261.85483045,0.00021924,2]
[386655963,1758451858521,-1500.0,0.00021924,2]
[386655964,1758451858531,-200.83885379,0.00021924,2]
[386655965,1758451858540,-947.9875069,0.00021925,2]
[386655966,1758451858550,-504.8872314,0.00021931,2]
[386655967,1758451858559,-1500.0,0.00021931,2]
[386655968,1758451858569,-1157.3834965,0.00021931,2]
[386655969,1758451858579,-1549.91780046,0.00021932,2]
[386655970,1758451858588,-1500.0,0.00021932,2]
[386655971,1758451858598,-179.0,0.00021962,2]
[386655972,1758451858607,-5358.23,0.00022,7]
[386655973,1758451858617,-669.16,0.00022,2]
[386655974,1758451858627,-179.0,0.0002201,2]
[386655975,1758451858636,-179.0,0.00022022,2]
[386655976,1758451858645,-179.0,0.00022038,2]
[386655977,1758451858655,-12719.39472188,0.00022044,2]
[386655978,1758451858665,-460.0,0.00022072,2]
[386655979,1758451858675,-179.0,0.00022084,2]
[386655980,1758451858685,-500.0,0.00022096,2]
[386655981,1758451858695,-150.0,0.000221,10]
[386655982,1758451858704,-160.9257665,0.00022175,2]
[386655983,1758451858714,-480.0,0.00022191,2]
[386655984,1758451858723,-491.6859979,0.00022191,2]
[386655985,1758451858733,-480.0,0.00022191,2]
[386655986,1758451858742,-480.0,0.00022191,2]
[386655987,1758451858752,-480.0,0.00022191,2]
[386655988,1758451858761,-480.0,0.00022191,2]
[386655989,1758451858770,-387.95985108,0.00022191,2]
[386655990,1758451858779,-252.60071238,0.00022191,2]
[386655991,1758451858788,-480.0,0.00022191,2]
[386655992,1758451858798,-480.0,0.00022191,2]
[386655993,1758451858808,-480.0,0.00022191,2]
[386655994,1758451858817,-480.0,0.00022191,2]
[386655995,1758451858827,-480.0,0.00022191,2]
[386655996,1758451858836,-151.0,0.00022191,7]
[386655997,1758451858848,-151.0,0.00022191,7]
[386655998,1758451858857,-151.0,0.00022191,7]
[386655999,1758451858868,-861.84,0.00022191,2]
[386656000,1758451858878,-935.99,0.00022191,2]
[386656001,1758451858887,-348.94535429,0.00022191,2]
[386656002,1758451858896,-530.57,0.00022191,2]
[386656003,1758451858906,-480.0,0.00022191,2]
[386656004,1758451858915,-1522.15,0.00022191,2]
[386656005,1758451858924,-480.0,0.00022191,2]
[386656006,1758451858934,-1988.96,0.00022191,2]
[386656007,1758451858943,-297.64148973,0.00022191,2]
[386656008,1758451858953,-480.0,0.00022191,2]
[386656009,1758451858963,-480.0,0.00022191,2]
[386656010,1758451858972,-557.88,0.00022191,2]
[386656011,1758451858982,-1814.27,0.00022191,2]
[386656012,1758451858992,-480.0,0.00022191,2]
[386656013,1758451859003,-852.0,0.00022191,2]
[386656014,1758451859013,-877.9,0.00022191,2]
[386656015,1758451859022,-2934.94,0.00022191,2]
[386656016,1758451859031,-480.0,0.00022191,2]
[386656017,1758451859041,-886.63,0.00022191,2]
[386656018,1758451859050,-1154.68,0.00022191,2]
[386656019,1758451859060,-480.0,0.00022191,2]
[386656020,1758451859071,-480.0,0.00022191,2]
[386656021,1758451859080,-480.0,0.00022191,2]
[386656022,1758451859089,-480.0,0.00022191,2]
[386656023,1758451859099,-10502.96,0.00022191,2]
[386656024,1758451859108,-586.27,0.00022191,2]
[386656025,1758451859118,-768.24,0.00022191,2]
[386656026,1758451859128,-987.82,0.00022191,2]
[386656027,1758451859138,-480.0,0.00022191,2]
[386656028,1758451859147,-480.0,0.00022191,2]
[386656029,1758451859158,-530.61,0.00022191,2]
[386656030,1758451859167,-480.0,0.00022191,2]
[386656031,1758451859177,-1896.42,0.00022191,2]
[386656032,1758451859186,-480.0,0.00022191,2]
[386656033,1758451859196,-480.0,0.00022191,2]
[386656034,1758451859206,-480.0,0.00022191,2]
[386656035,1758451859216,-480.0,0.00022191,2]
[386656036,1758451859229,-480.0,0.00022191,2]
[386656037,1758451859239,-970.28,0.00022191,2]
[386656038,1758451859249,-480.0,0.00022191,2]
[386656039,1758451859258,-519.16,0.00022191,2]
[386656040,1758451859268,-1102.68,0.00022191,2]
[386656041,1758451859278,-480.0,0.00022191,2]
[386656042,1758451859287,-480.0,0.00022191,2]
[386656043,1758451859297,-650.16,0.00022191,2]
[386656044,1758451859307,-864.96,0.00022191,2]
[386656045,1758451859317,-480.0,0.00022191,2]
[386656046,1758451859327,-480.0,0.00022191,2]
[386656047,1758451859336,-1211.94,0.00022191,2]
[386656048,1758451859346,-480.0,0.00022191,2]
[386656049,1758451859356,-500.0,0.00022192,2]
[386656050,1758451859366,-2000.0,0.000222,2]
[386656051,1758451859376,-2000.0,0.000222,2]
[386656052,1758451859385,-2000.0,0.000222,2]
[386656053,1758451859395,-2000.0,0.000222,2]
[386656054,1758451859405,-3000.0,0.00022212,2]
[386656055,1758451859414,-179.0,0.00022292,2]
[386656056,1758451859423,-1229.43506846,0.0002231,2]
[386656057,1758451859433,-1099.89227555,0.0002232,7]
[386656058,1758451859443,-16020.15,0.00022322,2]
[386656059,1758451859453,-150.0,0.00022333,2]
[386656060,1758451859463,-608.51617541,0.0002237,2]
[386656061,1758451859472,-179.0,0.0002238,2]
[386656062,1758451859481,-1500.0,0.00022405,2]
[386656063,1758451859491,-153.330072,0.00022438,7]
[386656064,1758451859500,-151.0,0.00022438,7]
[386656065,1758451859510,-151.0,0.00022438,7]
[386656066,1758451859519,-151.0,0.00022438,7]
[386656067,1758451859529,-152.223131,0.00022438,7]
[386656068,1758451859539,-152.497499,0.00022444,7]
[386656069,1758451859548,-175.939137,0.00022444,7]
[386656070,1758451859558,-153.357488,0.00022444,7]
[386656071,1758451859568,-480.0,0.00022465,2]
[386656072,1758451859578,-480.0,0.00022465,2]
[386656073,1758451859587,-480.0,0.00022465,2]
[386656074,1758451859597,-480.0,0.00022465,2]
[386656075,1758451859607,-213.277159,0.00022465,7]
[386656076,1758451859617,-480.0,0.00022465,2]
[386656077,1758451859627,-480.0,0.00022465,2]
[386656078,1758451859637,-480.0,0.00022465,2]
[386656079,1758451859646,-503.92166849,0.00022465,2]
[386656080,1758451859656,-480.0,0.00022465,2]
[386656081,1758451859666,-494.57325951,0.00022465,2]
[386656082,1758451859675,-861.84,0.00022465,2]
[386656083,1758451859685,-935.99,0.00022465,2]
[386656084,1758451859695,-530.57,0.00022465,2]
[386656085,1758451859704,-480.0,0.00022465,2]
[386656086,1758451859715,-1522.15,0.00022465,2]
[386656087,1758451859724,-480.0,0.00022465,2]
[386656088,1758451859734,-1988.96,0.00022465,2]
[386656089,1758451859743,-480.0,0.00022465,2]
[386656090,1758451859753,-480.0,0.00022465,2]
[386656091,1758451859763,-557.88,0.00022465,2]
[386656092,1758451859773,-1814.27,0.00022465,2]
[386656093,1758451859783,-480.0,0.00022465,2]
[386656094,1758451859794,-852.0,0.00022465,2]
[386656095,1758451859803,-877.9,0.00022465,2]
[386656096,1758451859813,-2934.94,0.00022465,2]
[386656097,1758451859823,-480.0,0.00022465,2]
[386656098,1758451859833,-886.63,0.00022465,2]
[386656099,1758451859842,-1154.68,0.00022465,2]
[386656100,1758451859852,-168.50406977,0.00022465,2]
[386656101,1758451859863,-480.0,0.00022465,2]
[386656102,1758451859873,-480.0,0.00022465,2]
[386656103,1758451859882,-480.0,0.00022465,2]
[386656104,1758451859892,-10502.96,0.00022465,2]
[386656105,1758451859902,-586.27,0.00022465,2]
[386656106,1758451859912,-768.24,0.00022465,2]
[386656107,1758451859922,-987.82,0.00022465,2]
[386656108,1758451859932,-480.0,0.00022465,2]
[386656109,1758451859942,-480.0,0.00022465,2]
[386656110,1758451859951,-530.61,0.00022465,2]
[386656111,1758451859961,-547.36261781,0.00022465,2]
[386656112,1758451859971,-1896.42,0.00022465,2]
[386656113,1758451859981,-480.0,0.00022465,2]
[386656114,1758451859991,-480.0,0.00022465,2]
[386656115,1758451860001,-456.15802288,0.00022465,2]
[386656116,1758451860012,-480.0,0.00022465,2]
[386656117,1758451860021,-480.0,0.00022465,2]
[386656118,1758451860031,-970.28,0.00022465,2]
[386656119,1758451860041,-480.0,0.00022465,2]
[386656120,1758451860051,-519.16,0.00022465,2]
[386656121,1758451860064,-1102.68,0.00022465,2]
[386656122,1758451860074,-480.0,0.00022465,2]
[386656123,1758451860084,-480.0,0.00022465,2]
[386656124,1758451860095,-650.16,0.00022465,2]
[386656125,1758451860107,-864.96,0.00022465,2]
[386656126,1758451860118,-480.0,0.00022465,2]
[386656127,1758451860130,-480.0,0.00022465,2]
[386656128,1758451860141,-1211.94,0.00022465,2]
[386656129,1758451860151,-164.98963149,0.00022466,2]
[386656130,1758451860161,-500.0,0.00022466,2]
[386656131,1758451860171,-189.43090805,0.00022472,2]
[386656132,1758451860182,-2000.0,0.00022472,2]
[386656133,1758451860193,-1099.42384492,0.00022472,2]
[386656134,1758451860203,-757.36639487,0.00022472,2]
[386656135,1758451860214,-2000.0,0.00022479,2]
[386656136,1758451860224,-2000.0,0.0002248,2]
[386656137,1758451860234,-4000.0,0.000225,4]
[386656138,1758451860244,-179.0,0.00022505,2]
[386656139,1758451860255,-560.0,0.0002262,2]
[386656140,1758451860265,-800.0,0.00022628,2]
[386656141,1758451860275,-587.0,0.00022662,2]
[386656142,1758451860286,-179.0,0.00022673,2]
[386656143,1758451860296,-301.0,0.000227,2]
[386656144,1758451860307,-480.0,0.00022739,2]
[386656145,1758451860317,-480.0,0.00022739,2]
[386656146,1758451860327,-336.96409079,0.00022739,2]
[386656147,1758451860338,-480.0,0.00022739,2]
[386656148,1758451860347,-480.0,0.00022739,2]
[386656149,1758451860357,-480.0,0.00022739,2]
[386656150,1758451860370,-480.0,0.00022739,2]
[386656151,1758451860380,-480.0,0.00022739,2]
[386656152,1758451860390,-861.84,0.00022739,2]
[386656153,1758451860399,-935.99,0.00022739,2]
[386656154,1758451860410,-530.57,0.00022739,2]
[386656155,1758451860420,-480.0,0.00022739,2]
[386656156,1758451860431,-1522.15,0.00022739,2]
[386656157,1758451860440,-201.88072842,0.00022739,2]
[386656158,1758451860450,-1988.96,0.00022739,2]
[386656159,1758451860460,-480.0,0.00022739,2]
[386656160,1758451860470,-480.0,0.00022739,2]
[386656161,1758451860479,-557.88,0.00022739,2]
[386656162,1758451860490,-1814.27,0.00022739,2]
[386656163,1758451860499,-480.0,0.00022739,2]
[386656164,1758451860509,-852.0,0.00022739,2]
[386656165,1758451860519,-877.9,0.00022739,2]
[386656166,1758451860528,-2934.94,0.00022739,2]
[386656167,1758451860538,-480.0,0.00022739,2]
[386656168,1758451860549,-886.63,0.00022739,2]
[386656169,1758451860559,-1154.68,0.00022739,2]
[386656170,1758451860568,-211.46,0.00022739,2]
[386656171,1758451860578,-487.66895162,0.00022739,2]
[386656172,1758451860588,-480.0,0.00022739,2]
[386656173,1758451860598,-10502.96,0.00022739,2]
[386656174,1758451860608,-586.27,0.00022739,2]
[386656175,1758451860619,-768.24,0.00022739,2]
[386656176,1758451860629,-987.82,0.00022739,2]
[386656177,1758451860640,-480.0,0.00022739,2]
[386656178,1758451860650,-480.0,0.00022739,2]
[386656179,1758451860660,-530.61,0.00022739,2]
[386656180,1758451860671,-1896.42,0.00022739,2]
[386656181,1758451860681,-480.0,0.00022739,2]
[386656182,1758451860691,-480.0,0.00022739,2]
[386656183,1758451860701,-480.0,0.00022739,2]
[386656184,1758451860711,-480.0,0.00022739,2]
[386656185,1758451860721,-970.28,0.00022739,2]
[386656186,1758451860730,-480.0,0.00022739,2]
[386656187,1758451860740,-519.16,0.00022739,2]
[386656188,1758451860750,-1102.68,0.00022739,2]
[386656189,1758451860760,-480.0,0.00022739,2]
[386656190,1758451860769,-480.0,0.00022739,2]
[386656191,1758451860779,-650.16,0.00022739,2]
[386656192,1758451860788,-864.96,0.00022739,2]
[386656193,1758451860798,-480.0,0.00022739,2]
[386656194,1758451860808,-1211.94,0.00022739,2]
[386656195,1758451860818,-500.0,0.0002274,2]
[386656196,1758451860828,-3200.50989012,0.0002276,2]
[386656197,1758451860838,-242.78805494,0.00022794,2]
[386656198,1758451860849,-800.0,0.00022796,2]
[386656199,1758451860858,-800.0,0.00022796,2]
[386656200,1758451860869,-200.0,0.00022802,2]
[386656201,1758451860879,-221.18217356,0.00022833,2]
[386656202,1758451860888,-800.0,0.00022852,2]
[386656203,1758451860898,-300.0,0.00022881,2]
[386656204,1758451860908,-669.16,0.00022903,2]
[386656205,1758451860917,-179.0,0.00022903,2]
[386656206,1758451860927,-1300.0,0.00022904,2]
[386656207,1758451860938,-179.0,0.00022922,2]
[386656208,1758451860948,-2000.0,0.00022953,2]
[386656209,1758451860958,-1884.90623745,0.00023,10]
[386656210,1758451860968,-625.81041369,0.00023,2]
[386656211,1758451860979,-1493.22148287,0.00023,2]
[386656212,1758451860989,-160.0,0.00023,10]
[386656213,1758451860999,-151.0,0.00023,3]
[386656214,1758451861009,-151.0,0.00023,3]
[386656215,1758451861019,-328.0,0.00023,3]
[386656216,1758451861028,-152.92581206,0.00023,3]
[386656217,1758451861038,-328.0,0.00023,3]
[386656218,1758451861048,-328.0,0.00023,3]
[386656219,1758451861061,-328.0,0.00023,3]
[386656220,1758451861071,-328.0,0.00023,3]
[386656221,1758451861081,-328.0,0.00023,3]
[386656222,1758451861090,-328.0,0.00023,3]
[386656223,1758451861100,-328.0,0.00023,3]
[386656224,1758451861111,-328.0,0.00023,3]
[386656225,1758451861122,-336.88397745,0.00023,3]
[386656226,1758451861132,-171.0,0.00023,3]
[386656227,1758451861142,-173.59494933,0.00023,3]
[386656228,1758451861152,-180.0,0.00023,7]
[386656229,1758451861161,-160.0,0.00023,2]
[386656230,1758451861171,-150.0,0.00023,5]
[386656231,1758451861181,-848.42763433,0.00023,3]
[386656232,1758451861190,-160.0,0.00023,3]
[386656233,1758451861200,-233.52200025,0.00023,3]
[386656234,1758451861210,-160.0,0.00023,3]
[386656235,1758451861219,-166.0,0.00023,3]
[386656236,1758451861229,-166.0,0.00023,3]
[386656237,1758451861239,-151.0,0.00023,3]
[386656238,1758451861249,-159.0,0.00023,7]
[386656239,1758451861260,-179.0,0.00023009,2]
[386656240,1758451861270,-285.2369166,0.00023013,2]
[386656241,1758451861279,-480.0,0.00023013,2]
[386656242,1758451861289,-494.28296097,0.00023013,2]
[386656243,1758451861299,-480.0,0.00023013,2]
[386656244,1758451861310,-380.32610051,0.00023013,2]
[386656245,1758451861320,-480.0,0.00023013,2]
[386656246,1758451861331,-480.0,0.00023013,2]
[386656247,1758451861341,-480.0,0.00023013,2]
[386656248,1758451861351,-861.84,0.00023013,2]
[386656249,1758451861362,-935.99,0.00023013,2]
[386656250,1758451861374,-530.57,0.00023013,2]
[386656251,1758451861384,-500.47856204,0.00023013,2]
[386656252,1758451861394,-1522.15,0.00023013,2]
[386656253,1758451861404,-1988.96,0.00023013,2]
[386656254,1758451861414,-480.0,0.00023013,2]
[386656255,1758451861424,-480.0,0.00023013,2]
[386656256,1758451861435,-557.88,0.00023013,2]
[386656257,1758451861445,-1814.27,0.00023013,2]
[386656258,1758451861455,-480.0,0.00023013,2]
[386656259,1758451861465,-852.0,0.00023013,2]
[386656260,1758451861475,-877.9,0.00023013,2]
[386656261,1758451861620,-2934.94,0.00023013,2]
[386656262,1758451861632,-480.0,0.00023013,2]
[386656263,1758451861641,-886.63,0.00023013,2]
[386656264,1758451861654,-1154.68,0.00023013,2]
[386656265,1758451861663,-480.0,0.00023013,2]
[386656266,1758451861672,-10502.96,0.00023013,2]
[386656267,1758451861682,-586.27,0.00023013,2]
[386656268,1758451861692,-768.24,0.00023013,2]
[386656269,1758451861702,-987.82,0.00023013,2]
[386656270,1758451861712,-480.0,0.00023013,2]
[386656271,1758451861721,-480.0,0.00023013,2]
[386656272,1758451861731,-530.61,0.00023013,2]
[386656273,1758451861742,-1896.42,0.00023013,2]
[386656274,1758451861752,-480.0,0.00023013,2]
[386656275,1758451861761,-480.0,0.00023013,2]
[386656276,1758451861771,-480.0,0.00023013,2]
[386656277,1758451861780,-480.0,0.00023013,2]
[386656278,1758451861790,-970.28,0.00023013,2]
[386656279,1758451861799,-480.0,0.00023013,2]
[386656280,1758451861809,-519.16,0.00023013,2]
[386656281,1758451861819,-1102.68,0.00023013,2]
[386656282,1758451861828,-480.0,0.00023013,2]
[386656283,1758451861838,-480.0,0.00023013,2]
[386656284,1758451861847,-650.16,0.00023013,2]
[386656285,1758451861856,-241.77302,0.00023013,7]
[386656286,1758451861866,-864.96,0.00023013,2]
[386656287,1758451861876,-151.0,0.00023013,7]
[386656288,1758451861885,-151.0,0.00023013,7]
[386656289,1758451861895,-151.0,0.00023013,7]
[386656290,1758451861904,-151.0,0.00023013,7]
[386656291,1758451861913,-204.82434943,0.00023013,2]
[386656292,1758451861923,-152.959384,0.00023013,7]
[386656293,1758451861932,-151.0,0.00023013,7]
[386656294,1758451861941,-373.155315,0.00023013,7]
[386656295,1758451861950,-373.155315,0.00023013,7]
[386656296,1758451861959,-373.155315,0.00023013,7]
[386656297,1758451861969,-373.155315,0.00023013,7]
[386656298,1758451861979,-1211.94,0.00023013,2]
[386656299,1758451861988,-500.0,0.00023014,2]
[386656300,1758451861999,-1721.94704638,0.0002302,2]
[386656301,1758451862009,-435.0,0.00023022,2]
[386656302,1758451862018,-1509.85528191,0.00023027,2]
[386656303,1758451862028,-2500.0,0.00023028,2]
[386656304,1758451862037,-435.0,0.00023068,2]
[386656305,1758451862047,-435.0,0.00023077,2]
[386656306,1758451862056,-179.0,0.0002308,2]